bitfinex-derivatives/quotes_SOLF0:USTF0_20250528
["timestamp","ask_amount","ask_price","bid_price","bid_amount"]
[1748458083232,0.04333788,170.66,170.64,5.8585]
[1748458083538,0.04333788,170.66,170.62,0.03769459]
[1748458083744,0.04333788,170.66,170.65,5.8584]
[1748458088233,0.04333788,170.66,170.63,5.8589]
[1748458088434,0.04333788,170.66,170.62,0.03769459]
[1748458088640,29.04333788,170.66,170.62,0.03769459]
[1748458089538,5.8587,170.65,170.62,0.03769459]
[1748458089733,29.04333788,170.66,170.62,0.03769459]
[1748458091242,29.04333788,170.66,170.65,5.8584]
[1748458091437,0.04333788,170.66,170.65,5.8584]
[1748458101643,3.788e-05,170.66,170.65,5.8584]
[1748458105047,3.788e-05,170.66,170.65,34.8584]
[1748458108058,3.8867,170.78,170.68,10.74055355]
[1748458108257,3.8867,170.78,170.69,29.0]
[1748458108557,9.7408,170.78,170.75,5.8549]
[1748458108760,3.8867,170.78,170.69,29.0]
[1748458109056,0.0385747,170.75,170.72,0.04223638]
[1748458110056,0.0385747,170.75,170.74,5.8553]
[1748458114158,0.0385747,170.75,170.72,0.04223638]
[1748458114359,29.0385747,170.75,170.72,0.04223638]
[1748458114558,5.8557,170.73,170.72,0.04223638]
[1748458114869,29.0385747,170.75,170.72,0.04223638]
[1748458115357,29.0385747,170.75,170.73,5.8554]
[1748458115953,0.0385747,170.75,170.74,5.8553]
[1748458119861,0.0385747,170.75,170.73,5.8554]
[1748458120262,0.0385747,170.75,170.73,5.8557]
[1748458120662,0.0385747,170.75,170.72,0.04223638]
[1748458121263,0.0385747,170.75,170.73,5.8557]
[1748458121464,0.0385747,170.75,170.72,0.04223638]
[1748458122368,0.0385747,170.75,170.73,5.8555]
[1748458126968,0.0385747,170.75,170.74,5.8553]
[1748458127172,5.8935747,170.75,170.72,0.04223638]
[1748458127467,0.0385747,170.75,170.72,0.04223638]
[1748458127865,28.98,170.74,170.72,0.04223638]
[1748458128267,5.8557,170.73,170.72,0.04223638]
[1748458132872,39.72055355,170.74,170.63,28.98]
[1748458133077,2.0504,170.72,170.63,28.98]
[1748458133374,10.74055355,170.71,170.65,5.8583]
[1748458133574,28.98,170.7,170.65,5.8583]
[1748458133973,5.90017153,170.69,170.66,0.03705279]
[1748458134473,5.90017153,170.69,170.66,5.89515279]
[1748458134676,5.8574,170.68,170.66,0.03705279]
[1748458135066,0.04287153,170.69,170.66,0.03705279]
[1748458135770,0.04287153,170.69,170.68,5.8574]
[1748458143881,5.89997153,170.69,170.66,0.03705279]
[1748458144087,0.04287153,170.69,170.66,0.03705279]
[1748458144992,5.8575,170.68,170.66,5.89505279]
[1748458146288,5.8575,170.68,170.66,0.03705279]
[1748458146678,34.8575,170.68,170.66,0.03705279]
[1748458149090,5.8578,170.67,170.66,0.03705279]
[1748458150188,5.8592,170.63,170.61,5.8596]
[1748458150388,5.8592,170.63,170.57,28.98]
[1748458151187,0.03920309,170.62,170.58,0.03908078]
[1748458151393,0.03920309,170.62,170.61,5.8598]
[1748458153298,0.03920309,170.62,170.6,5.86]
[1748458155000,0.03920309,170.62,170.58,0.03908078]
[1748458155695,4.0292,170.71,170.59,10.74055355]
[1748458155895,4.0292,170.71,170.6,4.0492]
[1748458156198,29.0,170.7,170.61,29.0]
[1748458156591,0.03894973,170.67,170.64,0.04018107]
[1748458157196,0.03894973,170.67,170.66,5.858]
[1748458163707,0.03894973,170.67,170.64,5.89878107]
[1748458163905,0.03894973,170.67,170.64,0.04018107]
[1748458164705,5.8583,170.66,170.64,0.04018107]
[1748458165310,5.89684973,170.67,170.64,5.89888107]
[1748458166405,5.8581,170.66,170.64,5.89888107]
[1748458166608,5.8581,170.66,170.64,0.04018107]
[1748458168910,34.8581,170.66,170.64,0.04018107]
[1748458169410,29.0,170.66,170.64,0.04018107]
[1748458170412,34.8582,170.66,170.64,0.04018107]
[1748458171114,29.0,170.66,170.64,0.04018107]
[1748458171509,0.03894973,170.67,170.64,0.04018107]
[1748458172509,0.03894973,170.67,170.66,5.8581]
[1748458179411,0.03894973,170.67,170.64,5.89868107]
[1748458179617,0.03894973,170.67,170.64,0.04018107]
[1748458179814,5.8583,170.66,170.64,0.04018107]
[1748458180012,0.03894973,170.67,170.64,0.04018107]
[1748458180912,5.8583,170.66,170.64,5.89898107]
[1748458181514,5.8583,170.66,170.64,0.04018107]
[1748458181910,5.8584,170.65,170.64,0.04018107]
[1748458183315,29.0,170.66,170.56,2.0407]
[1748458183508,29.0,170.66,170.55,29.0]
[1748458183509,41.66165355,170.66,170.55,29.0]
[1748458183712,5.8597,170.62,170.55,29.0]
[1748458184420,0.03827313,170.6,170.59,5.8603]
[1748458196723,0.03827313,170.6,170.58,5.8608]
[1748458197322,0.03827313,170.6,170.53,618.66]
[1748458197323,0.03827313,170.6,170.52,4.0287]
[1748458197529,0.03827313,170.6,170.5,29.0]
[1748458197729,0.03827313,170.6,170.47,31.0628]
[1748458197933,5.8624,170.54,170.47,31.0628]
[1748458198128,29.0,170.56,170.47,31.0628]
[1748458198327,10.74055355,170.58,170.5,0.04090299]
[1748458198328,5.8629,170.52,170.5,0.04090299]
[1748458200035,0.03726083,170.53,170.5,0.04090299]
[1748458200430,0.03726083,170.53,170.51,5.863]
[1748458200635,0.03726083,170.53,170.5,0.04090299]
[1748458201332,0.03726083,170.53,170.52,5.8629]
[1748458202829,29.0,170.61,170.5,0.04090299]
[1748458203133,29.0,170.61,170.59,5.8604]
[1748458203540,29.0,170.61,170.6,5.8602]
[1748458205026,29.0,170.61,170.59,0.03722897]
[1748458206439,29.0,170.61,170.59,5.89752897]
[1748458207935,29.0,170.61,170.6,5.8602]
[1748458212642,0.04409331,170.62,170.6,5.8602]
[1748458213041,0.04409331,170.62,170.59,0.03722897]
[1748458213042,0.04409331,170.62,170.61,5.8598]
[1748458214635,29.38,170.67,170.66,5.8581]
[1748458215744,29.38,170.67,170.65,5.90296071]
[1748458216839,0.04294788,170.68,170.65,0.04456071]
[1748458217742,0.04294788,170.68,170.66,5.8581]
[1748458218340,0.04294788,170.68,170.65,0.04456071]
[1748458218943,5.8581,170.66,170.65,0.04456071]
[1748458219146,35.2381,170.66,170.65,0.04456071]
[1748458221950,29.38,170.66,170.65,5.90296071]
[1748458222355,29.38,170.66,170.65,0.04456071]
[1748458223660,0.04294788,170.68,170.65,0.04456071]
[1748458223661,29.42294788,170.68,170.65,0.04456071]
[1748458224457,29.42294788,170.68,170.66,5.8579]
[1748458224755,29.42294788,170.68,170.65,0.04456071]
[1748458224952,29.42294788,170.68,170.66,5.8579]
[1748458225149,0.04294788,170.68,170.66,5.8579]
[1748458226055,0.04294788,170.68,170.65,5.90286071]
[1748458226849,5.8578,170.67,170.65,5.90286071]
[1748458227351,0.04294788,170.68,170.66,5.8581]
[1748458227556,5.90054788,170.68,170.66,5.8581]
[1748458228953,0.04294788,170.68,170.65,0.04456071]
[1748458231161,5.858,170.67,170.65,5.90286071]
[1748458233657,5.90054788,170.68,170.65,5.90286071]
[1748458236056,0.04294788,170.68,170.65,0.04456071]
[1748458236460,5.858,170.67,170.65,0.04456071]
[1748458236660,29.38,170.66,170.65,0.04456071]
[1748458236861,29.38,170.66,170.58,29.38]
[1748458237054,5.8593,170.63,170.55,29.38]
[1748458237255,29.38,170.66,170.55,29.38]
[1748458237658,5.859,170.64,170.61,5.8596]
[1748458237867,0.03981299,170.63,170.61,5.8596]
[1748458241862,5.89901299,170.63,170.61,5.8596]
[1748458243468,0.03981299,170.63,170.61,5.8596]
[1748458244066,0.03981299,170.63,170.62,5.8595]
[1748458245875,0.03981299,170.63,170.59,0.04206247]
[1748458246370,0.03981299,170.63,170.59,5.90236247]
[1748458247072,5.8597,170.62,170.59,5.90236247]
[1748458247767,0.03981299,170.63,170.59,0.04206247]
[1748458247968,29.22,170.62,170.59,0.04206247]
[1748458248368,5.8602,170.6,170.59,0.04206247]
[1748458249577,5.8599,170.61,170.59,0.04206247]
[1748458251170,5.8599,170.61,170.59,5.90246247]
[1748458251375,29.22,170.62,170.59,0.04206247]
[1748458251971,29.22,170.62,170.61,5.8598]
[1748458254169,35.0795,170.62,170.6,5.86]
[1748458254365,29.22,170.62,170.59,0.04206247]
[1748458254878,29.22,170.62,170.52,29.22]
[1748458255072,29.22,170.62,170.55,5.8616]
[1748458255274,5.861,170.58,170.55,5.8616]
[1748458255473,5.861,170.58,170.5,1.9179]
[1748458255676,29.22,170.62,170.5,12.65845355]
[1748458255873,29.22,170.62,170.54,0.04345723]
[1748458255874,0.04001322,170.58,170.54,0.04345723]
[1748458257878,0.04001322,170.58,170.57,5.8612]
[1748458262780,0.04001322,170.58,170.56,5.8614]
[1748458263079,0.04001322,170.58,170.54,0.04345723]
[1748458263875,0.04001322,170.58,170.56,5.8613]
[1748458265084,0.04001322,170.58,170.57,5.8612]
[1748458265281,0.04001322,170.58,170.54,0.04345723]
[1748458265581,5.90091322,170.58,170.55,5.8616]
[1748458266087,5.90091322,170.58,170.55,5.8617]
[1748458266275,0.04001322,170.58,170.54,0.04345723]
[1748458266678,0.04001322,170.58,170.55,5.8618]
[1748458267074,5.8612,170.57,170.55,5.8618]
[1748458267279,0.04001322,170.58,170.55,5.8618]
[1748458267576,0.04001322,170.58,170.56,5.8614]
[1748458268183,0.04001322,170.58,170.57,5.8612]
[1748458270078,0.04001322,170.58,170.54,0.04345723]
[1748458271585,0.04001322,170.58,170.56,5.8613]
[1748458272883,5.90091322,170.58,170.56,5.8613]
[1748458273079,0.04001322,170.58,170.56,5.8613]
[1748458273586,0.04001322,170.58,170.54,0.04345723]
[1748458274985,5.8616,170.56,170.54,0.04345723]
[1748458275785,5.8616,170.56,170.54,5.90545723]
[1748458276188,5.8613,170.57,170.54,5.90545723]
[1748458276892,29.42001322,170.58,170.55,5.8618]
[1748458277786,35.28101322,170.58,170.55,5.8618]
[1748458278186,29.42001322,170.58,170.54,5.90555723]
[1748458278489,29.42001322,170.58,170.54,0.04345723]
[1748458279092,5.8619,170.55,170.54,0.04345723]
[1748458279395,40.16056677,170.58,170.46,29.38]
[1748458279596,3.816,170.57,170.46,29.38]
[1748458280184,3.816,170.57,170.51,5.8632]
[1748458280388,0.04247742,170.56,170.51,5.8632]
[1748458280587,5.8624,170.54,170.51,5.8632]
[1748458280888,5.8624,170.54,170.52,5.8629]
[1748458281089,0.03814838,170.55,170.47,10.74055355]
[1748458281292,0.03814838,170.55,170.48,5.8912]
[1748458281693,0.03814838,170.55,170.54,5.8622]
[1748458283500,4.838e-05,170.55,170.54,5.8622]
[1748458283699,29.38,170.61,170.6,5.8601]
[1748458284097,5.8593,170.63,170.6,5.8601]
[1748458284694,5.89910531,170.63,170.6,5.902471]
[1748458285304,5.8595,170.62,170.6,0.042371]
[1748458286003,0.03980531,170.63,170.6,0.042371]
[1748458286602,0.03980531,170.63,170.61,5.8598]
[1748458287297,5.89900531,170.63,170.6,5.902171]
[1748458287499,0.03980531,170.63,170.6,0.042371]
[1748458288201,0.03980531,170.63,170.61,5.8597]
[1748458289699,5.89900531,170.63,170.6,5.902471]
[1748458290100,0.03980531,170.63,170.6,5.902471]
[1748458290989,0.03980531,170.63,170.6,0.042371]
[1748458291498,0.03980531,170.63,170.51,29.38]
[1748458291696,40.14055355,170.64,170.51,29.38]
[1748458292093,5.8611,170.58,170.51,29.38]
[1748458292297,0.03958702,170.56,170.51,29.38]
[1748458292996,0.03958702,170.56,170.55,5.8619]
[1748458299404,5.8619,170.55,170.49,4.1235]
[1748458299702,5.8619,170.55,170.49,2.0265]
[1748458299905,5.90128702,170.56,170.48,29.38]
[1748458300103,0.03958702,170.56,170.48,40.12055355]
[1748458300303,0.03958702,170.56,170.55,5.8619]
[1748458307307,0.03958702,170.56,170.54,5.8619]
[1748458308609,0.03958702,170.56,170.46,1.9571]
[1748458308610,29.32,170.55,170.46,1.9571]
[1748458308808,0.04348186,170.52,170.44,29.32]
[1748458309120,0.04348186,170.52,170.43,2.0258]
[1748458309314,29.32,170.51,170.42,31.2743]
[1748458309613,0.03814921,170.48,170.42,31.2743]
[1748458310522,0.03814921,170.48,170.47,5.8646]
[1748458312309,0.03814921,170.48,170.42,31.2743]
[1748458313419,0.03814921,170.48,170.46,5.8649]
[1748458314317,0.03814921,170.48,170.47,5.8646]
[1748458314519,0.03814921,170.48,170.42,29.32]
[1748458314920,0.03814921,170.48,170.47,5.8646]
[1748458316416,0.03814921,170.48,170.46,5.8648]
[1748458316611,0.03814921,170.48,170.41,2.043]
[1748458316816,5.90264921,170.48,170.41,2.043]
[1748458317017,5.90264921,170.48,170.45,5.8651]
[1748458317324,0.03814921,170.48,170.41,2.043]
[1748458317626,5.865,170.46,170.43,5.8657]
[1748458318724,5.8653,170.45,170.42,5.8663]
[1748458318917,29.32,170.47,170.38,2.0258]
[1748458319121,0.04108678,170.44,170.38,2.0258]
[1748458319318,0.04108678,170.44,170.35,2.0177]
[1748458319527,29.32,170.43,170.33,29.32]
[1748458319724,5.8674,170.39,170.33,29.32]
[1748458320024,40.06055355,170.39,170.29,2.0177]
[1748458320216,5.8688,170.35,170.29,2.0177]
[1748458320418,29.34,170.35,170.24,546.62055355]
[1748458320624,0.04271294,170.31,170.24,546.62055355]
[1748458320926,0.04271294,170.31,170.24,535.88]
[1748458321129,0.04271294,170.31,170.3,5.8705]
[1748458321525,0.04271294,170.31,170.24,535.88]
[1748458321727,0.04271294,170.31,170.24,29.34]
[1748458322121,0.04271294,170.31,170.28,5.8711]
[1748458322327,0.04271294,170.31,170.24,29.34]
[1748458322528,0.04271294,170.31,170.23,1.9638]
[1748458322529,29.38271294,170.31,170.23,1.9638]
[1748458322723,29.38271294,170.31,170.12,62.0]
[1748458322724,10.74055355,170.27,170.12,29.34]
[1748458322932,0.03843701,170.21,170.12,29.34]
[1748458323235,0.03843701,170.21,170.17,5.8748]
[1748458323427,0.03843701,170.21,170.09,29.34]
[1748458323428,10.77967943,170.21,170.09,29.34]
[1748458323626,0.03756401,170.17,170.09,29.34]
[1748458323825,0.03756401,170.17,170.1,10.74055355]
[1748458324027,0.03756401,170.17,170.16,5.8753]
[1748458324222,0.03756401,170.17,170.09,29.34]
[1748458324632,0.03756401,170.17,170.16,5.8753]
[1748458325424,0.03756401,170.17,170.09,29.34]
[1748458325425,0.03756401,170.17,170.15,5.8755]
[1748458325623,0.03756401,170.17,170.09,29.34]
[1748458326228,0.03756401,170.17,170.08,4.015]
[1748458326426,0.03756401,170.17,170.12,5.8764]
[1748458326635,5.8767,170.12,170.03,34.689]
[1748458326839,0.04106134,170.09,170.03,34.689]
[1748458327140,0.04106134,170.09,170.08,5.8779]
[1748458327833,6.134e-05,170.09,170.08,5.8779]
[1748458328230,30.76,170.18,170.15,5.8754]
[1748458328436,30.76,170.18,170.09,2.0715]
[1748458329234,0.04010944,170.15,170.12,0.03781318]
[1748458329539,10.8488265,170.13,169.91,30.76]
[1748458329833,10.8488265,170.06,169.93,9.7573]
[1748458330034,10.8488265,170.06,169.93,3.8744]
[1748458330035,5.8798,170.03,169.93,3.8744]
[1748458330340,0.04390111,170.03,169.93,3.8744]
[1748458330541,0.04390111,170.03,169.93,1.9066]
[1748458330738,5.8815,169.98,169.88,30.76]
[1748458330936,0.04349008,169.95,169.9,5.8842]
[1748458331130,0.04349008,169.95,169.85,3.9984]
[1748458331329,0.04349008,169.95,169.81,30.76]
[1748458331546,0.03776429,169.9,169.81,30.76]
[1748458331735,0.03776429,169.9,169.78,30.76]
[1748458332038,30.76,169.95,169.77,30.76]
[1748458332239,30.78,169.95,169.81,16.09954064]
[1748458332534,1.9272,170.01,169.82,36.8754]
[1748458332741,1.9272,170.01,169.85,16.09954064]
[1748458332742,30.78,170.0,169.85,16.09954064]
[1748458333044,0.0436865,169.94,169.91,0.04172956]
[1748458334034,0.0436865,169.94,169.93,5.8829]
[1748458334234,0.0436865,169.94,169.91,0.04172956]
[1748458334835,5.9262865,169.94,169.82,36.8754]
[1748458335033,5.8826,169.94,169.82,36.8754]
[1748458335538,5.8833,169.93,169.82,6.0954]
[1748458335734,0.04331729,169.89,169.88,5.8845]
[1748458335935,0.04475917,169.9,169.82,6.0954]
[1748458336343,0.04475917,169.9,169.74,32.38]
[1748458336537,0.04504639,169.84,169.75,1.9273]
[1748458336744,0.04504639,169.84,169.83,5.8865]
[1748458337147,0.04504639,169.84,169.75,3.9839]
[1748458337352,0.04504639,169.84,169.83,5.8865]
[1748458339149,0.04504639,169.84,169.79,32.38]
[1748458339648,0.04504639,169.84,169.83,5.8865]
[1748458340050,0.04504639,169.84,169.75,38.5639]
[1748458341455,0.04504639,169.84,169.83,5.8865]
[1748458341957,34.58,169.91,169.8,34.58]
[1748458342151,34.58,169.91,169.81,36.5564]
[1748458342361,34.58,169.91,169.82,34.58]
[1748458342855,0.03884735,169.88,169.85,0.04350795]
[1748458343051,542.28,169.95,169.85,0.04350795]
[1748458343556,542.28,169.95,169.87,5.885]
[1748458343856,542.28,169.95,169.82,34.58]
[1748458344048,542.28,169.95,169.87,0.04192133]
[1748458344250,0.04383161,169.9,169.87,0.04192133]
[1748458344449,34.58,169.95,169.87,0.04192133]
[1748458344651,34.58,169.95,169.87,34.64192133]
[1748458344843,5.8827,169.94,169.87,34.64192133]
[1748458345047,5.8827,169.94,169.87,34.6]
[1748458345347,5.8823,169.96,169.87,34.6]
[1748458345547,36.5944,169.99,169.9,0.04473468]
[1748458345548,0.04496585,169.93,169.9,0.04473468]
[1748458345949,0.04496585,169.93,169.92,5.8834]
[1748458346652,0.04496585,169.93,169.9,0.04473468]
[1748458347152,0.04496585,169.93,169.92,5.8834]
[1748458347859,34.6,169.99,169.9,0.04473468]
[1748458348770,0.03807136,169.96,169.9,0.04473468]
[1748458349557,0.03807136,169.96,169.93,5.8828]
[1748458349760,5.92027136,169.96,169.9,0.04473468]
[1748458350146,0.03807136,169.96,169.9,0.04473468]
[1748458351752,0.03807136,169.96,169.94,5.8824]
[1748458352059,0.03807136,169.96,169.91,1.9208]
[1748458352250,0.03807136,169.96,169.94,5.8826]
[1748458352750,0.03807136,169.96,169.91,1.9208]
[1748458352957,0.03807136,169.96,169.94,5.8826]
[1748458353153,0.03807136,169.96,169.91,1.9208]
[1748458353358,5.92007136,169.96,169.91,7.8043]
[1748458353657,0.03807136,169.96,169.91,1.9208]
[1748458354558,0.03807136,169.96,169.95,5.8823]
[1748458355151,0.03807136,169.96,169.94,5.92664305]
[1748458355352,0.03807136,169.96,169.94,0.04404305]
[1748458356154,5.92027136,169.96,169.94,0.04404305]
[1748458356357,0.03807136,169.96,169.94,0.04404305]
[1748458356751,0.03807136,169.96,169.94,5.92644305]
[1748458356956,0.03807136,169.96,169.94,0.04404305]
[1748458359659,0.03807136,169.96,169.95,5.8823]
[1748458360161,0.03807136,169.96,169.94,0.04404305]
[1748458361060,0.03807136,169.96,169.94,5.92674305]
[1748458361263,0.03807136,169.96,169.94,0.04404305]
[1748458361664,0.03807136,169.96,169.94,5.92664305]
[1748458361855,0.03807136,169.96,169.94,0.04404305]
[1748458363461,0.03807136,169.96,169.94,5.92654305]
[1748458363763,0.03807136,169.96,169.94,0.04404305]
[1748458363956,0.03807136,169.96,169.95,5.8823]
[1748458365756,34.58,170.03,169.98,5.8811]
[1748458365952,34.58,170.03,169.94,34.58]
[1748458366158,34.58,170.07,169.94,34.58]
[1748458366754,0.0379082,170.02,170.0,5.8803]
[1748458367160,0.0379082,170.02,169.99,34.62117141]
[1748458367559,0.0379082,170.02,170.0,5.8806]
[1748458367759,0.0379082,170.02,169.99,34.62117141]
[1748458367760,0.0379082,170.02,169.99,0.04117141]
[1748458369163,35.3379082,170.02,169.92,2.0493]
[1748458369571,5.8816,169.98,169.92,2.0493]
[1748458369761,35.3,170.02,169.92,2.0493]
[1748458370159,35.3,170.02,169.95,0.04148576]
[1748458370160,0.04085118,169.99,169.95,0.04148576]
[1748458372068,0.04085118,169.99,169.96,5.8819]
[1748458372566,0.04085118,169.99,169.97,5.8813]
[1748458372971,0.04085118,169.99,169.95,0.04148576]
[1748458373264,35.3,170.07,169.95,35.34148576]
[1748458373463,35.3,170.07,169.95,35.3]
[1748458373659,5.8795,170.04,169.95,35.3]
[1748458374167,35.3,170.07,169.95,35.3]
[1748458374168,0.0371171,170.01,169.98,0.04050369]
[1748458374760,0.0371171,170.01,169.99,5.8807]
[1748458374964,0.0371171,170.01,169.98,0.04050369]
[1748458377371,0.0371171,170.01,169.99,5.8806]
[1748458377771,0.0371171,170.01,170.0,5.8806]
[1748458380177,0.0371171,170.01,169.98,0.04050369]
[1748458381271,0.0371171,170.01,169.99,5.8807]
[1748458382060,0.0371171,170.01,169.98,0.04050369]
[1748458382472,0.0371171,170.01,170.0,5.8806]
[1748458385178,1.71e-05,170.01,170.0,41.1606]
[1748458385371,543.42,170.11,170.0,35.28]
[1748458385877,35.28,170.11,170.0,35.28]
[1748458386069,41.1571,170.11,170.06,5.8783]
[1748458386269,2.05102995,170.1,170.06,5.91921535]
[1748458386665,7.92842995,170.1,170.06,5.91921535]
[1748458387269,0.04252995,170.1,170.07,5.8781]
[1748458387472,0.04252995,170.1,170.06,0.04091535]
[1748458387878,0.04252995,170.1,170.07,5.8782]
[1748458388078,0.04252995,170.1,170.06,0.04091535]
[1748458390667,0.04252995,170.1,170.07,5.878]
[1748458390872,0.04252995,170.1,170.06,0.04091535]
[1748458391275,0.04252995,170.1,170.09,5.8775]
[1748458391574,0.04252995,170.1,170.06,0.04091535]
[1748458392487,0.04252995,170.1,170.09,5.8775]
[1748458402077,2.995e-05,170.1,170.09,5.8775]
[1748458423001,1.9239,170.17,170.07,10.8402088]
[1748458423199,7.7989,170.17,170.07,12.9102088]
[1748458423400,1.9239,170.17,170.07,12.9102088]
[1748458423601,1.9239,170.17,170.12,5.8762]
[1748458423904,5.8756,170.15,170.12,5.8762]
[1748458424100,0.04377562,170.15,170.12,0.04339512]
[1748458424402,34.36,170.14,170.05,35.28]
[1748458424603,34.36,170.14,170.08,5.8776]
[1748458425097,10.8402088,170.11,170.04,5.879]
[1748458425297,0.04164031,170.09,170.06,0.03954846]
[1748458425493,34.40164031,170.09,170.06,0.03954846]
[1748458430098,40.27934031,170.09,170.06,0.03954846]
[1748458430292,34.40164031,170.09,170.06,0.03954846]
[1748458430999,5.878,170.08,170.06,0.03954846]
[1748458431597,34.40164031,170.09,170.06,0.03954846]
[1748458432404,34.40164031,170.09,170.01,34.36]
[1748458432903,34.40164031,170.09,170.03,5.8793]
[1748458433103,34.40164031,170.09,170.01,34.36]
[1748458433305,34.40164031,170.09,170.03,0.04390801]
[1748458433506,5.8783,170.07,170.04,5.879]
[1748458433804,34.40164031,170.09,170.04,5.879]
[1748458434194,10.8402088,170.08,170.03,0.04390801]
[1748458434712,5.8792,170.04,170.03,0.04390801]
[1748458435007,0.03877659,170.05,170.03,0.04390801]
[1748458435803,5.91767659,170.05,170.03,0.04390801]
[1748458436202,0.03877659,170.05,170.03,0.04390801]
[1748458436400,5.8792,170.04,170.03,0.04390801]
[1748458437497,5.8792,170.04,169.99,5.8809]
[1748458437498,33.5,170.04,169.99,5.8809]
[1748458438109,5.8803,170.01,169.98,5.8812]
[1748458438308,3.8224,170.03,169.98,5.8812]
[1748458438511,0.04194657,170.02,169.99,0.03905875]
[1748458438710,5.92214657,170.02,169.99,5.91995875]
[1748458439201,0.04194657,170.02,170.0,5.8806]
[1748458440301,0.04194657,170.02,169.99,0.03905875]
[1748458440810,5.8806,170.0,169.99,0.03905875]
[1748458441906,5.8812,169.99,169.93,33.5]
[1748458442309,10.8402088,170.02,169.93,33.5]
[1748458442509,5.8806,170.0,169.93,33.5]
[1748458442705,5.7248,170.03,169.93,33.5]
[1748458442908,5.7248,170.03,169.96,0.04158094]
[1748458442909,0.04494993,170.0,169.96,0.04158094]
[1748458443213,0.04494993,170.0,169.99,5.8809]
[1748458443807,541.4,170.08,169.96,0.04158094]
[1748458444112,541.4,170.08,169.98,10.8402088]
[1748458444311,541.4,170.08,169.98,44.3402088]
[1748458444517,541.4,170.08,169.98,33.5]
[1748458444906,5.8798,170.03,170.01,0.0371126]
[1748458445115,0.03777773,170.05,170.01,0.0371126]
[1748458445414,5.8794,170.04,170.01,0.0371126]
[1748458445711,0.03777773,170.05,170.01,0.0371126]
[1748458445914,5.8795,170.04,170.01,5.9173126]
[1748458446315,0.03777773,170.05,170.01,0.0371126]
[1748458447709,0.03777773,170.05,170.03,5.8795]
[1748458448116,0.03777773,170.05,170.01,0.0371126]
[1748458448919,0.03777773,170.05,170.01,10.8773214]
[1748458449215,2.1029,170.11,170.01,10.8773214]
[1748458449722,5.8772,170.1,170.06,5.8783]
[1748458449914,5.8772,170.1,170.01,10.8402088]
[1748458450218,0.04245523,170.07,170.04,0.03849674]
[1748458451120,0.04245523,170.07,170.06,5.8785]
[1748458451318,0.04245523,170.07,170.04,0.03849674]
[1748458451711,0.04245523,170.07,170.05,5.8787]
[1748458452210,0.04245523,170.07,170.04,5.91759674]
[1748458452410,0.04245523,170.07,170.04,0.03849674]
[1748458452721,0.04245523,170.07,169.98,33.5]
[1748458453315,0.04245523,170.07,170.0,5.8804]
[1748458453519,0.04245523,170.07,169.98,33.5]
[1748458453722,0.04245523,170.07,170.01,0.04195334]
[1748458454315,0.04245523,170.07,170.04,5.879]
[1748458455020,0.04245523,170.07,170.01,0.04195334]
[1748458455628,5.8791,170.05,170.01,0.04195334]
[1748458455926,0.04245523,170.07,170.01,0.04195334]
[1748458456519,5.8792,170.05,170.01,0.04195334]
[1748458456720,0.04245523,170.07,170.01,0.04195334]
[1748458457125,5.8792,170.04,170.01,0.04195334]
[1748458457328,0.04245523,170.07,170.01,0.04195334]
[1748458457826,5.8799,170.02,170.01,0.04195334]
[1748458458226,33.54414652,170.03,170.01,0.04195334]
[1748458458829,5.8799,170.02,170.01,0.04195334]
[1748458459031,33.54414652,170.03,169.96,5.8818]
[1748458459229,5.881,169.99,169.94,33.5]
[1748458459631,33.5,170.03,169.94,33.5]
[1748458459926,5.881,169.99,169.94,33.5]
[1748458460139,0.03710962,170.0,169.97,0.04466056]
[1748458460539,0.03710962,170.0,169.9,33.34]
[1748458460930,10.8402088,169.98,169.87,509.9247]
[1748458461136,5.8826,169.95,169.92,5.8831]
[1748458461438,33.34,169.97,169.87,509.9247]
[1748458461635,33.34,169.97,169.91,5.8836]
[1748458461636,0.04437863,169.94,169.91,5.8836]
[1748458461840,0.04437863,169.94,169.9,0.04489182]
[1748458462642,5.8833,169.93,169.9,0.04489182]
[1748458462838,0.04437863,169.94,169.9,0.04489182]
[1748458463045,5.8833,169.93,169.9,0.04489182]